fUSD/lending_fUSD_20250826
["ID","MTS","AMOUNT","RATE_DAILY","PERIOD"]
[381382721,1756173038013,-1309.16,0.00016438,2]
[381382722,1756173038023,-400.0,0.00016438,2]
[381382723,1756173038032,-493.03,0.00016438,2]
[381382724,1756173038042,-400.0,0.00016438,2]
[381382725,1756173038053,-732.14,0.00016438,2]
[381382726,1756173038063,-454.33,0.00016438,2]
[381382727,1756173038219,-1519.12,0.00016438,2]
[381382731,1756173038247,-622.83,0.00016438,2]
[381382733,1756173038256,-998.08,0.00016438,2]
[381382735,1756173038268,-670.69,0.00016438,2]
[381382737,1756173038277,-400.0,0.00016438,2]
[381382739,1756173038287,-400.0,0.00016438,2]
[381382741,1756173038298,-774.5,0.00016438,2]
[381382743,1756173038309,-400.0,0.00016438,2]
[381382745,1756173038318,-400.0,0.00016438,2]
[381382747,1756173038327,-400.0,0.00016438,2]
[381382749,1756173038337,-431.14,0.00016438,2]
[381382751,1756173038346,-400.0,0.00016438,2]
[381382753,1756173038356,-905.75,0.00016438,2]
[381382755,1756173038365,-400.0,0.00016438,2]
[381382756,1756173038374,-642.81,0.00016438,2]
[381382758,1756173038384,-550.28,0.00016438,2]
[381382759,1756173038394,-1232.56,0.00016438,2]
[381382760,1756173038403,-400.0,0.00016438,2]
[381382761,1756173038412,-400.0,0.00016438,2]
[381382762,1756173038422,-400.0,0.00016438,2]
[381382763,1756173038431,-400.0,0.00016438,2]
[381382764,1756173038440,-554.37,0.00016438,2]
[381382765,1756173038449,-1169.11,0.00016438,2]
[381382766,1756173038459,-1120.53,0.00016438,2]
[381382767,1756173038468,-2128.01,0.00016438,2]
[381382768,1756173038477,-400.0,0.00016438,2]
[381382769,1756173038487,-400.0,0.00016438,2]
[381382770,1756173038496,-400.0,0.00016438,2]
[381382771,1756173038504,-580.77,0.00016438,2]
[381382772,1756173038514,-400.0,0.00016438,2]
[381382773,1756173038523,-400.0,0.00016438,2]
[381382774,1756173038532,-400.0,0.00016438,2]
[381382775,1756173038541,-400.0,0.00016438,2]
[381382776,1756173038551,-1488.13,0.00016438,2]
[381382777,1756173038560,-411.98,0.00016438,2]
[381382778,1756173038569,-773.61,0.00016438,2]
[381382779,1756173038578,-1305.71,0.00016438,2]
[381382780,1756173038589,-400.0,0.00016438,2]
[381382781,1756173038599,-400.0,0.00016438,2]
[381382782,1756173038609,-400.0,0.00016438,2]
[381382783,1756173038619,-875.65,0.00016438,2]
[381382784,1756173038629,-723.9,0.00016438,2]
[381382785,1756173038638,-1766.14,0.00016438,2]
[381382786,1756173038649,-400.0,0.00016438,2]
[381382787,1756173038658,-664.73,0.00016438,2]
[381382788,1756173038668,-992.14,0.00016438,2]
[381382789,1756173038678,-400.0,0.00016438,2]
[381382790,1756173038688,-748.09,0.00016438,2]
[381382791,1756173038697,-400.0,0.00016438,2]
[381382792,1756173038706,-783.86,0.00016438,2]
[381382793,1756173038715,-401.22659185,0.00016438,2]
[381382794,1756173038725,-1385.17,0.00016438,2]
[381382795,1756173038735,-729.99,0.00016438,2]
[381382796,1756173038745,-1924.91,0.00016438,2]
[381382797,1756173038755,-761.01,0.00016438,2]
[381382798,1756173038765,-2290.51,0.00016438,2]
[381382799,1756173038775,-14408.85,0.00016438,2]
[381382800,1756173038785,-565.97,0.00016438,2]
[381382801,1756173038795,-694.66,0.00016438,2]
[381382802,1756173038806,-226.94941576,0.00016438,2]
[381382803,1756173038815,-487.78,0.00016438,2]
[381382804,1756173038824,-400.0,0.00016438,2]
[381382805,1756173038834,-400.0,0.00016438,2]
[381382806,1756173038843,-400.0,0.00016438,2]
[381382807,1756173038852,-1189.1,0.00016438,2]
[381382808,1756173038861,-819.18,0.00016438,2]
[381382809,1756173038870,-400.0,0.00016438,2]
[381382810,1756173038879,-433.55,0.00016438,2]
[381382811,1756173038889,-629.75,0.00016438,2]
[381382812,1756173038898,-1764.38,0.00016438,2]
[381382813,1756173038908,-770.98,0.00016438,2]
[381382814,1756173038917,-687.02,0.00016438,2]
[381382815,1756173038926,-1218.19,0.00016438,2]
[381382816,1756173038937,-5296.95,0.00016438,2]
[381382817,1756173038947,-1201.15,0.00016438,2]
[381382818,1756173038956,-452.53860494,0.00016438,2]
[381382819,1756173038966,-525.97,0.00016438,2]
[381382820,1756173038975,-400.0,0.00016438,2]
[381382821,1756173038984,-767.62,0.00016438,2]
[381382822,1756173038993,-765.14,0.00016438,2]
[381382823,1756173039002,-461.65,0.00016438,2]
[381382824,1756173039011,-400.0,0.00016438,2]
[381382825,1756173039020,-744.71,0.00016438,2]
[381382826,1756173039030,-400.0,0.00016438,2]
[381382827,1756173039039,-1412.17,0.00016438,2]
[381382828,1756173039048,-1210.75,0.00016438,2]
[381382829,1756173039061,-400.0,0.00016438,2]
[381382830,1756173039071,-705.88,0.00016438,2]
[381382831,1756173039080,-1200.69,0.00016438,2]
[381382832,1756173039089,-941.52,0.00016438,2]
[381382833,1756173039099,-799.83,0.00016438,2]
[381382834,1756173039108,-731.57,0.00016438,2]
[381382835,1756173039118,-815.61,0.00016438,2]
[381382836,1756173039127,-400.57264867,0.00016438,2]
[381382837,1756173039136,-3153.76,0.00016438,2]
[381382838,1756173039145,-1021.21,0.00016438,2]
[381382839,1756173039155,-400.0,0.00016438,2]
[381382840,1756173039165,-400.0,0.00016438,2]
[381382841,1756173039174,-1209.59,0.00016438,2]
[381382842,1756173039184,-584.94,0.00016438,2]
[381382843,1756173039193,-856.11,0.00016438,2]
[381382844,1756173039202,-1597.61,0.00016438,2]
[381382845,1756173039212,-846.74,0.00016438,2]
[381382846,1756173039226,-573.43,0.00016438,2]
[381382847,1756173039236,-1378.99,0.00016438,2]
[381382848,1756173039245,-410.08,0.00016438,2]
[381382849,1756173039255,-400.0,0.00016438,2]
[381382850,1756173039266,-1066.9,0.00016438,2]
[381382851,1756173039276,-1385.5,0.00016438,2]
[381382852,1756173039286,-400.0,0.00016438,2]
[381382853,1756173039297,-1175.07,0.00016438,2]
[381382854,1756173039310,-856.63,0.00016438,2]
[381382855,1756173039319,-530.46664507,0.00016438,2]
[381382856,1756173039329,-658.66,0.00016438,2]
[381382857,1756173039339,-1070.68,0.00016438,2]
[381382858,1756173039349,-400.0,0.00016438,2]
[381382859,1756173039359,-151.0,0.00016438,2]
[381382860,1756173039368,-408.65,0.00016438,2]
[381382861,1756173039379,-408.65,0.00016438,2]
[381382862,1756173039389,-408.65,0.00016438,2]
[381382863,1756173039399,-408.65,0.00016438,2]
[381382864,1756173039409,-408.65,0.00016438,2]
[381382865,1756173039420,-188.86,0.00016438,2]
[381382866,1756173039431,-500.0,0.00016483,2]
[381382867,1756173039441,-1088.48,0.00016672,2]
[381382868,1756173039451,-250.0,0.00016672,2]
[381382869,1756173039461,-618.36463469,0.00016673,2]
[381382870,1756173039471,-300.0,0.000167,6]
[381382871,1756173039480,-254.38293419,0.0001671,2]
[381382872,1756173039489,-400.0,0.00016711,2]
[381382873,1756173039499,-400.78020644,0.00016711,2]
[381382874,1756173039508,-400.0,0.00016711,2]
[381382875,1756173039518,-400.0,0.00016711,2]
[381382876,1756173039528,-400.0,0.00016711,2]
[381382877,1756173039537,-400.0,0.00016711,2]
[381382878,1756173039547,-400.0,0.00016711,2]
[381382879,1756173039558,-250.1,0.00016711,2]
[381382880,1756173039567,-400.0,0.00016711,2]
[381382881,1756173039577,-400.0,0.00016711,2]
[381382882,1756173039588,-400.0,0.00016711,2]
[381382883,1756173039597,-400.37267437,0.00016711,2]
[381382884,1756173039608,-400.0,0.00016711,2]
[381382885,1756173039618,-400.0,0.00016711,2]
[381382886,1756173039627,-400.0,0.00016711,2]
[381382887,1756173039637,-400.0,0.00016711,2]
[381382888,1756173039646,-400.23041554,0.00016711,2]
[381382889,1756173039656,-400.0,0.00016711,2]
[381382890,1756173039666,-400.0,0.00016711,2]
[381382891,1756173039675,-299.50896645,0.00016711,2]
[381382892,1756173039685,-400.0,0.00016711,2]
[381382893,1756173039694,-400.0,0.00016711,2]
[381382894,1756173039705,-400.86124248,0.00016711,2]
[381382895,1756173039714,-400.0,0.00016711,2]
[381382896,1756173039724,-400.0,0.00016711,2]
[381382897,1756173039734,-400.0,0.00016711,2]
[381382898,1756173039744,-400.0,0.00016711,2]
[381382899,1756173039753,-400.63067761,0.00016711,2]
[381382900,1756173039763,-400.0,0.00016711,2]
[381382901,1756173039773,-400.0,0.00016711,2]
[381382902,1756173039783,-400.0,0.00016711,2]
[381382903,1756173039794,-400.0,0.00016711,2]
[381382904,1756173039806,-400.0,0.00016711,2]
[381382905,1756173039815,-400.0,0.00016711,2]
[381382907,1756173039825,-171.590527,0.00016711,2]
[381382909,1756173039833,-400.0,0.00016711,2]
[381382910,1756173039842,-400.0,0.00016711,2]
[381382911,1756173039852,-400.0,0.00016711,2]
[381382912,1756173039863,-400.0,0.00016711,2]
[381382913,1756173039874,-400.0,0.00016711,2]
[381382914,1756173039884,-405.8128171,0.00016711,2]
[381382915,1756173039895,-400.0,0.00016711,2]
[381382916,1756173039905,-1769.12,0.00016711,2]
[381382917,1756173039914,-401.14931276,0.00016711,2]
[381382918,1756173039923,-400.0,0.00016711,2]
[381382919,1756173039932,-400.0,0.00016711,2]
[381382920,1756173039941,-400.0,0.00016711,2]
[381382921,1756173039951,-769.04,0.00016711,2]
[381382922,1756173039961,-400.0,0.00016711,2]
[381382923,1756173039971,-400.0,0.00016711,2]
[381382924,1756173039982,-400.0,0.00016711,2]
[381382925,1756173039991,-1115.31,0.00016711,2]
[381382926,1756173040001,-227.83741804,0.00016711,2]
[381382927,1756173040011,-502.22253002,0.00016711,2]
[381382928,1756173040020,-400.0,0.00016711,2]
[381382929,1756173040030,-400.0,0.00016711,2]
[381382930,1756173040040,-400.0,0.00016711,2]
[381382931,1756173040050,-500.0,0.00016711,2]
[381382932,1756173040060,-400.0,0.00016711,2]
[381382933,1756173040069,-1279.83,0.00016711,2]
[381382934,1756173040079,-400.0,0.00016711,2]
[381382935,1756173040091,-936.84,0.00016711,2]
[381382936,1756173040100,-400.0,0.00016711,2]
[381382937,1756173040110,-400.0,0.00016711,2]
[381382938,1756173040120,-1505.43,0.00016711,2]
[381382939,1756173040131,-400.0,0.00016711,2]
[381382940,1756173040142,-400.0,0.00016711,2]
[381382941,1756173040152,-400.0,0.00016711,2]
[381382942,1756173040161,-400.0,0.00016711,2]
[381382943,1756173040171,-1375.65,0.00016711,2]
[381382944,1756173040180,-400.0,0.00016711,2]
[381382945,1756173040189,-869.18,0.00016711,2]
[381382946,1756173040199,-400.0,0.00016711,2]
[381382947,1756173040208,-400.0,0.00016711,2]
[381382948,1756173040220,-1326.64,0.00016711,2]
[381382949,1756173040230,-400.58103664,0.00016711,2]
[381382950,1756173040240,-400.0,0.00016711,2]
[381382951,1756173040249,-2001.82,0.00016711,2]
[381382952,1756173040259,-400.0,0.00016711,2]
[381382953,1756173040268,-1105.69,0.00016711,2]
[381382954,1756173040278,-1615.68,0.00016711,2]
[381382955,1756173040288,-400.0,0.00016711,2]
[381382956,1756173040298,-1614.16,0.00016711,2]
[381382957,1756173040309,-400.0,0.00016711,2]
[381382958,1756173040321,-400.0,0.00016711,2]
[381382959,1756173040331,-1762.76,0.00016711,2]
[381382960,1756173040340,-400.0,0.00016711,2]
[381382961,1756173040349,-400.0,0.00016711,2]
[381382962,1756173040359,-681.63,0.00016711,2]
[381382963,1756173040368,-1581.42,0.00016711,2]
[381382964,1756173040378,-400.0,0.00016711,2]
[381382965,1756173040388,-400.0,0.00016711,2]
[381382966,1756173040397,-1326.73,0.00016711,2]
[381382967,1756173040407,-242.19279949,0.00016711,2]
[381382968,1756173040416,-400.0,0.00016711,2]
[381382971,1756173040425,-400.0,0.00016711,2]
[381382972,1756173040435,-1274.42,0.00016711,2]
[381382973,1756173040444,-400.0,0.00016711,2]
[381382974,1756173040453,-427.08,0.00016711,2]
[381382975,1756173040463,-400.0,0.00016711,2]
[381382976,1756173040473,-1219.26,0.00016711,2]
[381382977,1756173040483,-400.85662079,0.00016711,2]
[381382978,1756173040845,-400.0,0.00016711,2]
[381382979,1756173040877,-1314.75,0.00016711,2]
[381382980,1756173040887,-400.0,0.00016711,2]
[381382981,1756173040897,-400.0,0.00016711,2]
[381382982,1756173040908,-1453.72,0.00016711,2]
[381382983,1756173040919,-400.0,0.00016711,2]
[381382984,1756173040929,-1074.64,0.00016711,2]
[381382985,1756173040939,-400.0,0.00016711,2]
[381382986,1756173040949,-1361.5,0.00016711,2]
[381382987,1756173040958,-1361.5,0.00016711,2]
[381382988,1756173040969,-1361.5,0.00016711,2]
[381382989,1756173040979,-400.0,0.00016711,2]
[381382990,1756173040988,-1361.5,0.00016711,2]
[381382991,1756173041000,-1361.5,0.00016711,2]
[381382992,1756173041010,-1361.5,0.00016711,2]
[381382993,1756173041019,-874.13,0.00016711,2]
[381382994,1756173041029,-1361.5,0.00016711,2]
[381382995,1756173041038,-1361.5,0.00016711,2]
[381382996,1756173041048,-1361.5,0.00016711,2]
[381382997,1756173041059,-1361.5,0.00016711,2]
[381382998,1756173041068,-1361.5,0.00016711,2]
[381382999,1756173041077,-1361.5,0.00016711,2]
[381383000,1756173041088,-400.0,0.00016711,2]
[381383001,1756173041100,-1361.5,0.00016711,2]
[381383002,1756173041111,-1361.5,0.00016711,2]
[381383003,1756173041125,-1361.5,0.00016711,2]
[381383004,1756173041136,-1361.5,0.00016711,2]
[381383005,1756173041147,-1361.5,0.00016711,2]
[381383006,1756173041159,-1361.5,0.00016711,2]
[381383007,1756173041169,-1361.5,0.00016711,2]
[381383008,1756173041179,-1361.5,0.00016711,2]
[381383009,1756173041190,-1361.5,0.00016711,2]
[381383010,1756173041199,-1361.5,0.00016711,2]
[381383011,1756173041211,-1361.5,0.00016711,2]
[381383012,1756173041227,-1361.5,0.00016711,2]
[381383013,1756173041236,-400.0,0.00016711,2]
[381383014,1756173041245,-711.04,0.00016711,2]
[381383015,1756173041254,-1528.63,0.00016711,2]
[381383016,1756173041263,-400.0,0.00016711,2]
[381383017,1756173041272,-400.0,0.00016711,2]
[381383018,1756173041281,-1168.82,0.00016711,2]
[381383019,1756173041291,-400.0,0.00016711,2]
[381383020,1756173041300,-1833.38,0.00016711,2]
[381383021,1756173041310,-400.0,0.00016711,2]
[381383022,1756173041320,-874.34,0.00016711,2]
[381383023,1756173041329,-1620.03,0.00016711,2]
[381383024,1756173041338,-400.0,0.00016711,2]
[381383025,1756173041347,-400.40869163,0.00016711,2]
[381383026,1756173041356,-400.0,0.00016711,2]
[381383027,1756173041365,-1119.1,0.00016711,2]
[381383028,1756173041374,-1128.14,0.00016711,2]
[381383029,1756173041383,-1382.6,0.00016711,2]
[381383030,1756173041392,-400.0,0.00016711,2]
[381383031,1756173041401,-400.0,0.00016711,2]
[381383032,1756173041410,-963.61,0.00016711,2]
[381383033,1756173041419,-400.0,0.00016711,2]
[381383034,1756173041429,-753.19,0.00016711,2]
[381383035,1756173041438,-400.0,0.00016711,2]
[381383036,1756173041447,-400.0,0.00016711,2]
[381383037,1756173041457,-400.0,0.00016711,2]
[381383038,1756173041466,-400.0,0.00016711,2]
[381383039,1756173041475,-755.05,0.00016711,2]
[381383040,1756173041484,-401.50108666,0.00016711,2]
[381383041,1756173041493,-400.0,0.00016711,2]
[381383042,1756173041511,-400.0,0.00016711,2]
[381383043,1756173041520,-1001.68139445,0.00016711,2]
[381383044,1756173041529,-493.58,0.00016711,2]
[381383045,1756173041539,-400.0,0.00016711,2]
[381383046,1756173041548,-400.0,0.00016711,2]
[381383047,1756173041559,-400.82072915,0.00016711,2]
[381383048,1756173041568,-1032.79,0.00016711,2]
[381383049,1756173041578,-701.4,0.00016711,2]
[381383050,1756173041587,-500.0,0.00016711,2]
[381383051,1756173041596,-400.0,0.00016711,2]
[381383052,1756173041606,-400.0,0.00016711,2]
[381383053,1756173041615,-1108.58,0.00016711,2]
[381383054,1756173041624,-400.0,0.00016711,2]
[381383055,1756173041636,-400.0,0.00016711,2]
[381383056,1756173041645,-1570.08,0.00016711,2]
[381383057,1756173041655,-870.46,0.00016711,2]
[381383058,1756173041664,-743.42,0.00016711,2]
[381383059,1756173041673,-859.85,0.00016711,2]
[381383060,1756173041683,-400.0,0.00016711,2]
[381383061,1756173041693,-1006.94,0.00016711,2]
[381383062,1756173041702,-787.03,0.00016711,2]
[381383063,1756173041711,-874.32,0.00016711,2]
[381383064,1756173041721,-400.0,0.00016711,2]
[381383065,1756173041730,-757.2,0.00016711,2]
[381383066,1756173041740,-1004.79,0.00016711,2]
[381383067,1756173041751,-500.0,0.00016711,2]
[381383068,1756173041761,-1488.75,0.00016711,2]
[381383069,1756173041772,-948.28,0.00016711,2]
[381383070,1756173041783,-696.9,0.00016711,2]
[381383071,1756173041794,-400.0,0.00016711,2]
[381383072,1756173041805,-984.07,0.00016711,2]
[381383073,1756173041815,-400.0,0.00016711,2]
[381383074,1756173041825,-842.23,0.00016711,2]
[381383075,1756173041837,-1119.92,0.00016711,2]
[381383076,1756173041848,-400.0,0.00016711,2]
[381383077,1756173041859,-1126.3,0.00016711,2]
[381383078,1756173041869,-1067.55,0.00016711,2]
[381383079,1756173041878,-1004.12,0.00016711,2]
[381383080,1756173041889,-402.77,0.00016711,2]
[381383081,1756173041899,-400.0,0.00016711,2]
[381383082,1756173041908,-724.02,0.00016711,2]
[381383083,1756173041918,-400.0,0.00016711,2]
[381383084,1756173041928,-708.35,0.00016711,2]
[381383085,1756173041940,-1158.59,0.00016711,2]
[381383086,1756173041950,-400.0,0.00016711,2]
[381383087,1756173041960,-726.77,0.00016711,2]
[381383088,1756173041970,-735.72,0.00016711,2]
[381383089,1756173041979,-930.08,0.00016711,2]
[381383090,1756173041989,-1200.06,0.00016711,2]
[381383091,1756173041999,-1158.78,0.00016711,2]
[381383092,1756173042010,-686.26,0.00016711,2]
[381383093,1756173042020,-500.0,0.00016711,2]
[381383094,1756173042029,-500.0,0.00016711,2]
[381383095,1756173042040,-189.91091558,0.00016711,2]
[381383096,1756173042049,-400.0,0.00016711,2]
[381383097,1756173042059,-1337.22,0.00016711,2]
[381383098,1756173042069,-610.52,0.00016711,2]
[381383099,1756173042079,-400.0,0.00016711,2]
[381383100,1756173042089,-1132.42,0.00016711,2]
[381383101,1756173042098,-400.0,0.00016711,2]
[381383102,1756173042108,-906.07,0.00016711,2]
[381383103,1756173042118,-1641.18,0.00016711,2]
[381383104,1756173042127,-803.89,0.00016711,2]
[381383105,1756173042136,-453.76,0.00016711,2]
[381383106,1756173042146,-1820.98,0.00016711,2]
[381383107,1756173042155,-650.13,0.00016711,2]
[381383108,1756173042166,-400.0,0.00016711,2]
[381383109,1756173042175,-400.0,0.00016711,2]
[381383110,1756173042186,-1192.7,0.00016711,2]
[381383111,1756173042197,-599.18,0.00016711,2]
[381383112,1756173042206,-1259.05,0.00016711,2]
[381383113,1756173042220,-400.0,0.00016711,2]
[381383114,1756173042232,-1518.83,0.00016711,2]
[381383115,1756173042242,-704.24,0.00016711,2]
[381383116,1756173042254,-1270.11,0.00016711,2]
[381383117,1756173042264,-2562.35,0.00016711,2]
[381383118,1756173042273,-400.56,0.00016711,2]
[381383119,1756173042283,-400.0,0.00016711,2]
[381383120,1756173042293,-794.16,0.00016711,2]
[381383121,1756173042306,-819.44,0.00016711,2]
[381383122,1756173042315,-1013.99,0.00016711,2]
[381383123,1756173042325,-1213.21,0.00016711,2]
[381383124,1756173042335,-753.98,0.00016711,2]
[381383125,1756173042345,-1582.35,0.00016711,2]
[381383126,1756173042361,-874.89,0.00016711,2]
[381383127,1756173042379,-400.0,0.00016711,2]
[381383128,1756173042391,-1528.03,0.00016711,2]
[381383129,1756173042402,-400.0,0.00016711,2]
[381383130,1756173042412,-845.27,0.00016711,2]
[381383131,1756173042421,-985.1,0.00016711,2]
[381383132,1756173042431,-500.0,0.00016712,2]
[381383133,1756173042442,-500.0,0.00016712,2]
[381383134,1756173042452,-400.0,0.00016712,2]
[381383135,1756173042462,-400.0,0.00016712,2]
[381383136,1756173042472,-400.0,0.00016712,2]
[381383137,1756173042483,-400.0,0.00016712,2]
[381383138,1756173042493,-400.0,0.00016712,2]
[381383139,1756173042503,-400.0,0.00016712,2]
[381383140,1756173042513,-400.38095062,0.00016712,2]
[381383141,1756173042522,-400.0,0.00016712,2]
[381383142,1756173042531,-400.0,0.00016712,2]
[381383143,1756173042540,-400.0,0.00016712,2]
[381383144,1756173042551,-400.0,0.00016712,2]
[381383145,1756173042568,-400.0,0.00016712,2]
[381383146,1756173042586,-400.0,0.00016712,2]
[381383147,1756173042595,-400.0,0.00016712,2]
[381383148,1756173042605,-400.0,0.00016712,2]
[381383149,1756173042615,-400.0,0.00016712,2]
[381383150,1756173042625,-400.0,0.00016712,2]
[381383151,1756173042634,-400.0,0.00016712,2]
[381383152,1756173042644,-522.11,0.00016712,2]
[381383153,1756173042654,-516.7,0.00016712,2]
[381383154,1756173042664,-400.26,0.00016712,2]
[381383155,1756173042673,-400.0,0.00016712,2]
[381383156,1756173042682,-793.59,0.00016712,2]
[381383157,1756173042691,-746.37,0.00016712,2]
[381383158,1756173042700,-669.29,0.00016712,2]
[381383159,1756173042710,-400.0,0.00016712,2]
[381383160,1756173042720,-400.0,0.00016712,2]
[381383161,1756173042729,-402.44867748,0.00016712,2]
[381383162,1756173042739,-809.35,0.00016712,2]
[381383164,1756173042748,-753.38,0.00016712,2]
[381383165,1756173042757,-400.0,0.00016712,2]
[381383166,1756173042766,-400.0,0.00016712,2]
[381383167,1756173042776,-400.0,0.00016712,2]
[381383168,1756173042786,-757.15,0.00016712,2]
[381383169,1756173042795,-400.0,0.00016712,2]
[381383170,1756173042805,-400.0,0.00016712,2]
[381383171,1756173042814,-721.44,0.00016712,2]
[381383172,1756173042823,-400.0,0.00016712,2]
[381383174,1756173042835,-400.0,0.00016712,2]
[381383176,1756173042845,-400.0,0.00016712,2]
[381383178,1756173042856,-778.36,0.00016712,2]
[381383180,1756173042867,-1110.06,0.00016712,2]
[381383181,1756173042876,-840.27,0.00016712,2]
[381383182,1756173042886,-400.0,0.00016712,2]
[381383183,1756173042895,-952.94,0.00016712,2]
[381383185,1756173042906,-400.0,0.00016712,2]
[381383186,1756173042916,-400.0,0.00016712,2]
[381383187,1756173042927,-657.84,0.00016712,2]
[381383188,1756173042937,-400.0,0.00016712,2]
[381383189,1756173042947,-691.48,0.00016712,2]
[381383190,1756173042958,-622.37,0.00016712,2]
[381383191,1756173042970,-511.25,0.00016712,2]
[381383192,1756173042979,-750.86,0.00016712,2]
[381383193,1756173042990,-917.18,0.00016712,2]
[381383194,1756173043000,-400.0,0.00016712,2]
[381383195,1756173043009,-845.46,0.00016712,2]
[381383196,1756173043019,-1257.43,0.00016712,2]
[381383197,1756173043028,-434.47,0.00016712,2]
[381383198,1756173043037,-493.22,0.00016712,2]
[381383199,1756173043047,-705.63,0.00016712,2]
[381383200,1756173043057,-400.0,0.00016712,2]
[381383201,1756173043066,-400.0,0.00016712,2]
[381383202,1756173043076,-669.25,0.00016712,2]
[381383203,1756173043085,-509.27,0.00016712,2]
[381383204,1756173043095,-400.0,0.00016712,2]
[381383205,1756173043104,-818.45,0.00016712,2]
[381383206,1756173043114,-711.65,0.00016712,2]
[381383207,1756173043123,-400.0,0.00016712,2]
[381383208,1756173043132,-400.0,0.00016712,2]
[381383209,1756173043142,-400.0,0.00016712,2]
[381383210,1756173043151,-793.74,0.00016712,2]
[381383211,1756173043160,-1127.03,0.00016712,2]
[381383212,1756173043170,-843.11,0.00016712,2]
[381383213,1756173043179,-743.92,0.00016712,2]
[381383214,1756173043188,-1403.59,0.00016712,2]
[381383215,1756173043197,-400.0,0.00016712,2]
[381383216,1756173043207,-400.0,0.00016712,2]
[381383217,1756173043216,-400.0,0.00016712,2]
[381383218,1756173043230,-1319.52,0.00016712,2]
[381383219,1756173043239,-581.87,0.00016712,2]
[381383220,1756173043250,-409.18,0.00016712,2]
[381383222,1756173043260,-847.29,0.00016712,2]
[381383223,1756173043271,-595.25,0.00016712,2]
[381383224,1756173043280,-1049.5,0.00016712,2]
[381383225,1756173043291,-1628.8,0.00016712,2]
[381383226,1756173043412,-667.61,0.00016712,2]
[381383227,1756173043422,-488.49,0.00016712,2]
[381383228,1756173043432,-400.0,0.00016712,2]
[381383229,1756173043441,-522.56,0.00016712,2]
[381383230,1756173043452,-586.76,0.00016712,2]
[381383231,1756173043463,-400.0,0.00016712,2]
[381383232,1756173043472,-601.42,0.00016712,2]
[381383234,1756173043482,-505.66,0.00016712,2]
[381383236,1756173043493,-1385.22,0.00016712,2]
[381383238,1756173043502,-400.0,0.00016712,2]
[381383239,1756173043512,-400.0,0.00016712,2]
[381383240,1756173043521,-436.34,0.00016712,2]
[381383241,1756173043531,-440.18,0.00016712,2]
[381383242,1756173043541,-660.51,0.00016712,2]
[381383243,1756173043550,-525.58,0.00016712,2]
[381383244,1756173043560,-400.0,0.00016712,2]
[381383245,1756173043570,-401.7,0.00016712,2]
[381383246,1756173043580,-545.19,0.00016712,2]
[381383247,1756173043590,-489.32,0.00016712,2]
[381383248,1756173043598,-1421.15,0.00016712,2]
[381383249,1756173043607,-1148.13,0.00016712,2]
[381383250,1756173043617,-400.0,0.00016712,2]